[Event "*** Titled Tuesday Blitz"]
[Site "Chess.com"]
[Date "2021.03.16"]
[Round "4"]
[White "GMaka"]
[Black "elohunter1999"]
[Result "1-0"]
[WhiteElo "2467"]
[BlackElo "2611"]
[TimeControl "180+1"]
[EndTime "10:39:25 PDT"]
[Termination "GMaka won on time"]

1. c4 {[%clk 0:03:00.1]} 1... c5 {[%clk 0:02:58.5]} 2. Nc3 {[%clk 0:02:58.1]}
2... g6 {[%clk 0:02:58.1]} 3. g3 {[%clk 0:02:59]} 3... Bg7 {[%clk 0:02:58]} 4.
Bg2 {[%clk 0:02:59.9]} 4... Nc6 {[%clk 0:02:58.4]} 5. e3 {[%clk 0:02:55.1]} 5...
e6 {[%clk 0:02:58.2]} 6. Nge2 {[%clk 0:02:55.5]} 6... Nge7 {[%clk 0:02:58.5]} 7.
O-O {[%clk 0:02:55]} 7... O-O {[%clk 0:02:58.2]} 8. d4 {[%clk 0:02:49]} 8...
cxd4 {[%clk 0:02:58]} 9. exd4 {[%clk 0:02:49.9]} 9... d5 {[%clk 0:02:57.5]} 10.
b3 {[%clk 0:02:28]} 10... dxc4 {[%clk 0:02:47.3]} 11. Be3 {[%clk 0:02:22.8]}
11... cxb3 {[%clk 0:02:44]} 12. axb3 {[%clk 0:02:18.7]} 12... b6 {[%clk
0:02:40.1]} 13. Rc1 {[%clk 0:02:05.6]} 13... Bb7 {[%clk 0:02:38.5]} 14. d5
{[%clk 0:02:05.2]} 14... exd5 {[%clk 0:02:32]} 15. Nxd5 {[%clk 0:02:05.3]} 15...
Nxd5 {[%clk 0:02:31.3]} 16. Qxd5 {[%clk 0:02:04.2]} 16... Qxd5 {[%clk
0:02:26.9]} 17. Bxd5 {[%clk 0:02:05.1]} 17... Na5 {[%clk 0:02:27.3]} 18. Bxb7
{[%clk 0:02:02.4]} 18... Nxb7 {[%clk 0:02:28.2]} 19. Rc7 {[%clk 0:02:01.3]}
19... Nd6 {[%clk 0:02:16.9]} 20. Rd1 {[%clk 0:01:55.3]} 20... Nb5 {[%clk
0:02:04.9]} 21. Rcd7 {[%clk 0:01:55.4]} 21... Bf6 {[%clk 0:01:58.8]} 22. R1d5
{[%clk 0:01:37.6]} 22... Nc3 {[%clk 0:01:47.8]} 23. Nxc3 {[%clk 0:01:33.4]}
23... Bxc3 {[%clk 0:01:48.7]} 24. Rc7 {[%clk 0:01:27.8]} 24... Rfc8 {[%clk
0:01:44.3]} 25. Rdd7 {[%clk 0:01:26.9]} 25... Rxc7 {[%clk 0:01:44]} 26. Rxc7
{[%clk 0:01:27.8]} 26... Bg7 {[%clk 0:01:25.6]} 27. Kg2 {[%clk 0:01:22.4]} 27...
Kf8 {[%clk 0:01:23.9]} 28. Kf3 {[%clk 0:01:22.4]} 28... Ke8 {[%clk 0:01:19.9]}
29. h4 {[%clk 0:01:21.3]} 29... Be5 {[%clk 0:01:12.9]} 30. Rb7 {[%clk
0:01:21.2]} 30... h5 {[%clk 0:01:12.1]} 31. Ke4 {[%clk 0:01:20.5]} 31... Bd6
{[%clk 0:01:08.2]} 32. f4 {[%clk 0:01:02.8]} 32... Kf8 {[%clk 0:00:46.3]} 33.
Kf3 {[%clk 0:00:57.7]} 33... f5 {[%clk 0:00:39.7]} 34. Bd4 {[%clk 0:00:52.6]}
34... Be7 {[%clk 0:00:36.9]} 35. Be5 {[%clk 0:00:28.2]} 35... Ke8 {[%clk
0:00:36.3]} 36. Ke2 {[%clk 0:00:19.6]} 36... Kd8 {[%clk 0:00:32.3]} 37. Kd3
{[%clk 0:00:19.4]} 37... Ke8 {[%clk 0:00:30.1]} 38. Ke2 {[%clk 0:00:18.7]} 38...
Bc5 {[%clk 0:00:26.8]} 39. Rh7 {[%clk 0:00:12.6]} 39... a5 {[%clk 0:00:22.6]}
40. Rg7 {[%clk 0:00:10.8]} 40... b5 {[%clk 0:00:19.6]} 41. Rg8+ {[%clk
0:00:10.2]} 41... Bf8 {[%clk 0:00:19.2]} 42. Rxg6 {[%clk 0:00:11.1]} 42... a4
{[%clk 0:00:18.7]} 43. bxa4 {[%clk 0:00:12]} 43... bxa4 {[%clk 0:00:19.6]} 44.
Rg5 {[%clk 0:00:08.6]} 44... a3 {[%clk 0:00:17.2]} 45. Rxf5 {[%clk 0:00:08.4]}
45... Ra5 {[%clk 0:00:15.6]} 46. Rf6 {[%clk 0:00:07.5]} 46... Bb4 {[%clk
0:00:10]} 47. Rb6 {[%clk 0:00:06.2]} 47... Bc5 {[%clk 0:00:09.3]} 48. Rb7 {[%clk
0:00:05.6]} 48... Bg1 {[%clk 0:00:06.2]} 49. g4 {[%clk 0:00:04.8]} 49... Kd8
{[%clk 0:00:02.9]} 50. gxh5 {[%clk 0:00:03]} 50... Kc8 {[%clk 0:00:03.4]} 51.
Rb1 {[%clk 0:00:02.1]} 51... a2 {[%clk 0:00:03.3]} 52. Rc1+ {[%clk 0:00:03]} 1-0

[Event "*** Titled Tuesday Blitz"]
[Site "Chess.com"]
[Date "2021.03.16"]
[Round "4"]
[White "Cptn2"]
[Black "Nemsko"]
[Result "1-0"]
[WhiteElo "2494"]
[BlackElo "2313"]
[TimeControl "180+1"]
[EndTime "10:39:25 PDT"]
[Termination "Cptn2 won on time"]

1. e4 {[%clk 0:03:00.9]} 1... e5 {[%clk 0:02:55.4]} 2. Nf3 {[%clk 0:02:56]} 2...
Nc6 {[%clk 0:02:54.4]} 3. d4 {[%clk 0:02:51.8]} 3... exd4 {[%clk 0:02:54]} 4.
Nxd4 {[%clk 0:02:52.7]} 4... Nf6 {[%clk 0:02:53.8]} 5. Nc3 {[%clk 0:02:52.4]}
5... Bb4 {[%clk 0:02:51.7]} 6. Be3 {[%clk 0:02:27.3]} 6... O-O {[%clk 0:02:48]}
7. f3 {[%clk 0:02:21.4]} 7... Re8 {[%clk 0:02:45.3]} 8. Qd2 {[%clk 0:02:18.5]}
8... d6 {[%clk 0:02:44.6]} 9. O-O-O {[%clk 0:02:15.9]} 9... Ne5 {[%clk
0:02:21.7]} 10. Be2 {[%clk 0:02:08.8]} 10... a5 {[%clk 0:02:14.4]} 11. a3 {[%clk
0:02:07.9]} 11... Bc5 {[%clk 0:02:13.5]} 12. h3 {[%clk 0:02:01.7]} 12... Ng6
{[%clk 0:01:56.1]} 13. Bc4 {[%clk 0:01:43.7]} 13... c6 {[%clk 0:01:48.1]} 14.
Nf5 {[%clk 0:01:39]} 14... Bxf5 {[%clk 0:01:30.5]} 15. Bxc5 {[%clk 0:01:38.5]}
15... dxc5 {[%clk 0:01:27.3]} 16. exf5 {[%clk 0:01:27.5]} 16... Ne5 {[%clk
0:01:21.2]} 17. Ba2 {[%clk 0:01:16.3]} 17... b5 {[%clk 0:01:14.2]} 18. f4 {[%clk
0:01:05]} 18... Ned7 {[%clk 0:01:10.7]} 19. g4 {[%clk 0:01:02.4]} 19... b4
{[%clk 0:01:04.6]} 20. Nb1 {[%clk 0:01:02.6]} 20... Nb6 {[%clk 0:01:00.9]} 21.
Qf2 {[%clk 0:00:57.2]} 21... Qe7 {[%clk 0:00:57.7]} 22. g5 {[%clk 0:00:57]}
22... Ne4 {[%clk 0:00:57.8]} 23. Qg2 {[%clk 0:00:49.3]} 23... Qc7 {[%clk
0:00:57.4]} 24. Rhf1 {[%clk 0:00:44.1]} 24... c4 {[%clk 0:00:56.8]} 25. Rde1
{[%clk 0:00:33.3]} 25... Nc5 {[%clk 0:00:54.9]} 26. Qf3 {[%clk 0:00:30.6]} 26...
Rad8 {[%clk 0:00:39.8]} 27. f6 {[%clk 0:00:29.4]} 27... b3 {[%clk 0:00:31.2]}
28. Rxe8+ {[%clk 0:00:19.2]} 28... Rxe8 {[%clk 0:00:32.1]} 29. cxb3 {[%clk
0:00:16.9]} 29... Nd3+ {[%clk 0:00:30.5]} 30. Kc2 {[%clk 0:00:17.3]} 30... Ne1+
{[%clk 0:00:25]} 31. Rxe1 {[%clk 0:00:16.1]} 31... Rxe1 {[%clk 0:00:25.9]} 32.
bxc4 {[%clk 0:00:16.5]} 32... Qd7 {[%clk 0:00:21.7]} 33. Nd2 {[%clk 0:00:16.1]}
33... Qf5+ {[%clk 0:00:18.1]} 34. Qd3 {[%clk 0:00:12.2]} 34... Qxd3+ {[%clk
0:00:17.1]} 35. Kxd3 {[%clk 0:00:13.1]} 35... gxf6 {[%clk 0:00:16.3]} 36. gxf6
{[%clk 0:00:14]} 36... Rh1 {[%clk 0:00:15.2]} 37. Kd4 {[%clk 0:00:13.2]} 37...
Rxh3 {[%clk 0:00:14.1]} 38. Kc5 {[%clk 0:00:13.6]} 38... Nd7+ {[%clk 0:00:14]}
39. Kxc6 {[%clk 0:00:14.1]} 39... Nxf6 {[%clk 0:00:14.9]} 40. c5 {[%clk
0:00:14.6]} 40... Rd3 {[%clk 0:00:13.7]} 41. Nc4 {[%clk 0:00:12.6]} 41... a4
{[%clk 0:00:13.8]} 42. Ne5 {[%clk 0:00:13.4]} 42... Rd2 {[%clk 0:00:12]} 43.
Bxf7+ {[%clk 0:00:13.5]} 43... Kg7 {[%clk 0:00:12.4]} 44. Bc4 {[%clk 0:00:08.2]}
44... Ne4 {[%clk 0:00:08.9]} 45. Bb5 {[%clk 0:00:07.5]} 45... Rc2 {[%clk
0:00:07.3]} 46. Nd7 {[%clk 0:00:07.9]} 46... Rxb2 {[%clk 0:00:06.8]} 47. Bxa4
{[%clk 0:00:08]} 47... h5 {[%clk 0:00:05.4]} 48. Kd5 {[%clk 0:00:08.4]} 48...
Nc3+ {[%clk 0:00:05.3]} 49. Kc4 {[%clk 0:00:07.1]} 49... Nxa4 {[%clk 0:00:05.1]}
50. c6 {[%clk 0:00:07.1]} 50... Nb6+ {[%clk 0:00:03.6]} 51. Kc3 {[%clk
0:00:06.9]} 51... Rb1 {[%clk 0:00:02.5]} 52. Kc2 {[%clk 0:00:05.7]} 52... Rb5
{[%clk 0:00:02.6]} 53. a4 {[%clk 0:00:04.5]} 53... Rb4 {[%clk 0:00:01.6]} 54. a5
{[%clk 0:00:02.7]} 1-0

[Event "*** Titled Tuesday Blitz"]
[Site "Chess.com"]
[Date "2021.03.16"]
[Round "4"]
[White "SergeyShtyka"]
[Black "MarcoRiehle"]
[Result "1-0"]
[WhiteElo "2416"]
[BlackElo "2664"]
[TimeControl "180+1"]
[EndTime "10:39:26 PDT"]
[Termination "SergeyShtyka won by resignation"]

1. e4 {[%clk 0:03:00.9]} 1... e5 {[%clk 0:02:59.3]} 2. Nf3 {[%clk 0:03:01.1]}
2... Nf6 {[%clk 0:02:55.4]} 3. Nc3 {[%clk 0:03:01.3]} 3... Nc6 {[%clk 0:02:55]}
4. Bb5 {[%clk 0:03:01.3]} 4... Bc5 {[%clk 0:02:54.5]} 5. O-O {[%clk 0:03:01.1]}
5... O-O {[%clk 0:02:53.9]} 6. d3 {[%clk 0:03:00.4]} 6... d6 {[%clk 0:02:53.7]}
7. Bxc6 {[%clk 0:02:58.8]} 7... bxc6 {[%clk 0:02:53.5]} 8. Bg5 {[%clk
0:02:58.7]} 8... h6 {[%clk 0:02:53.3]} 9. Bh4 {[%clk 0:02:58.6]} 9... Rb8 {[%clk
0:02:51.4]} 10. Rb1 {[%clk 0:02:55.6]} 10... Bg4 {[%clk 0:02:50.3]} 11. h3
{[%clk 0:02:55.1]} 11... Bh5 {[%clk 0:02:50.2]} 12. g4 {[%clk 0:02:54.2]} 12...
Bg6 {[%clk 0:02:50.2]} 13. Ne2 {[%clk 0:02:44.4]} 13... Qd7 {[%clk 0:02:43]} 14.
Bxf6 {[%clk 0:02:43.6]} 14... gxf6 {[%clk 0:02:43.9]} 15. Ng3 {[%clk 0:02:40.5]}
15... h5 {[%clk 0:02:41.2]} 16. Nh4 {[%clk 0:02:22.9]} 16... hxg4 {[%clk
0:02:39.9]} 17. hxg4 {[%clk 0:02:16.8]} 17... d5 {[%clk 0:02:35.9]} 18. Qf3
{[%clk 0:02:14]} 18... a5 {[%clk 0:02:18.1]} 19. Kg2 {[%clk 0:02:09.8]} 19...
Rb4 {[%clk 0:02:11.3]} 20. Nhf5 {[%clk 0:01:50.5]} 20... Rfb8 {[%clk 0:01:52]}
21. b3 {[%clk 0:01:46.9]} 21... dxe4 {[%clk 0:01:19.3]} 22. dxe4 {[%clk
0:01:45.5]} 22... Qd2 {[%clk 0:01:20.2]} 23. Rbd1 {[%clk 0:01:20.4]} 23... Qf4
{[%clk 0:01:19.2]} 24. c3 {[%clk 0:00:50.2]} 24... Qxf3+ {[%clk 0:01:15]} 25.
Kxf3 {[%clk 0:00:50.1]} 25... R4b7 {[%clk 0:01:14.6]} 26. Rd7 {[%clk 0:00:46.6]}
26... Bf8 {[%clk 0:01:13.8]} 27. Rfd1 {[%clk 0:00:42.2]} 27... a4 {[%clk
0:01:11.5]} 28. b4 {[%clk 0:00:41.9]} 28... c5 {[%clk 0:01:11.2]} 29. a3 {[%clk
0:00:41.4]} 29... cxb4 {[%clk 0:01:10.9]} 30. cxb4 {[%clk 0:00:41.9]} 30... c5
{[%clk 0:01:11.4]} 31. bxc5 {[%clk 0:00:39.5]} 31... Rb3+ {[%clk 0:01:07.3]} 32.
R1d3 {[%clk 0:00:33.1]} 32... Bxc5 {[%clk 0:01:07.1]} 33. Nh5 {[%clk 0:00:21.3]}
33... Bxh5 {[%clk 0:01:03.3]} 34. gxh5 {[%clk 0:00:21.4]} 34... Rxd3+ {[%clk
0:01:01.1]} 35. Rxd3 {[%clk 0:00:20.8]} 35... Rb3 {[%clk 0:01:01.6]} 36. Ke2
{[%clk 0:00:17.5]} 36... Rxd3 {[%clk 0:00:46.8]} 37. Kxd3 {[%clk 0:00:17.5]}
37... Bxa3 {[%clk 0:00:47.7]} 38. Kc4 {[%clk 0:00:16.3]} 38... Bf8 {[%clk
0:00:44.1]} 39. f3 {[%clk 0:00:16.4]} 39... Kh7 {[%clk 0:00:43.4]} 40. Kc3
{[%clk 0:00:15.8]} 40... Bc5 {[%clk 0:00:41.9]} 41. Kc4 {[%clk 0:00:14.6]} 41...
Bf8 {[%clk 0:00:37.9]} 42. Kc3 {[%clk 0:00:14.7]} 42... Ba3 {[%clk 0:00:38.3]}
43. Kc4 {[%clk 0:00:14.2]} 43... Bc1 {[%clk 0:00:38.3]} 44. Kb4 {[%clk 0:00:12]}
44... a3 {[%clk 0:00:38.4]} 45. Kb3 {[%clk 0:00:12.5]} 45... Kg8 {[%clk
0:00:38.2]} 46. Ka2 {[%clk 0:00:11.9]} 46... Kf8 {[%clk 0:00:38.6]} 47. Kb3
{[%clk 0:00:12.4]} 47... Ke8 {[%clk 0:00:32.2]} 48. h6 {[%clk 0:00:10.9]} 48...
Bxh6 {[%clk 0:00:30.6]} 49. Nxh6 {[%clk 0:00:10.8]} 49... Kd7 {[%clk 0:00:30.6]}
50. Kxa3 {[%clk 0:00:08.9]} 50... Kc6 {[%clk 0:00:31.2]} 51. Kb4 {[%clk
0:00:08.9]} 51... Kd7 {[%clk 0:00:31.4]} 52. Kc5 {[%clk 0:00:09.1]} 52... Ke6
{[%clk 0:00:31.8]} 53. Nf5 {[%clk 0:00:09.3]} 53... Kd7 {[%clk 0:00:32.2]} 54.
Kd5 {[%clk 0:00:09.6]} 54... Ke8 {[%clk 0:00:32.5]} 55. Kd6 {[%clk 0:00:09.3]}
55... Kf8 {[%clk 0:00:33.1]} 56. Kd7 {[%clk 0:00:08.7]} 56... Kg8 {[%clk
0:00:34]} 57. Ke7 {[%clk 0:00:08.9]} 57... Kh7 {[%clk 0:00:34.5]} 58. Kxf7
{[%clk 0:00:08.8]} 58... Kh8 {[%clk 0:00:35.4]} 59. Kxf6 {[%clk 0:00:09.1]}
59... Kh7 {[%clk 0:00:36]} 60. Kxe5 {[%clk 0:00:09.4]} 60... Kg6 {[%clk
0:00:36.9]} 61. f4 {[%clk 0:00:09.7]} 61... Kf7 {[%clk 0:00:37.8]} 62. Nd4
{[%clk 0:00:09.9]} 62... Ke8 {[%clk 0:00:38.7]} 63. f5 {[%clk 0:00:09.8]} 63...
Kf7 {[%clk 0:00:39.6]} 64. Kf4 {[%clk 0:00:10.1]} 64... Ke7 {[%clk 0:00:40.5]}
65. e5 {[%clk 0:00:10.4]} 65... Kf8 {[%clk 0:00:41.4]} 66. e6 {[%clk 0:00:10]}
66... Ke8 {[%clk 0:00:42.3]} 67. Ke5 {[%clk 0:00:10.2]} 67... Ke7 {[%clk
0:00:43.2]} 68. f6+ {[%clk 0:00:10.5]} 68... Kf8 {[%clk 0:00:44.1]} 69. e7+
{[%clk 0:00:10.7]} 69... Ke8 {[%clk 0:00:43.4]} 70. Kd6 {[%clk 0:00:10.8]} 70...
Kf7 {[%clk 0:00:43.6]} 71. Kd7 {[%clk 0:00:10.6]} 71... Kg6 {[%clk 0:00:44.1]}
72. e8=Q+ {[%clk 0:00:09.9]} 72... Kh7 {[%clk 0:00:44.6]} 73. Qf7+ {[%clk
0:00:09.3]} 73... Kh6 {[%clk 0:00:44.5]} 74. Qg7+ {[%clk 0:00:09.6]} 74... Kh5
{[%clk 0:00:44.9]} 75. f7 {[%clk 0:00:09.7]} 1-0

[Event "*** Titled Tuesday Blitz"]
[Site "Chess.com"]
[Date "2021.03.16"]
[Round "4"]
[White "NoGuru"]
[Black "Niktlt"]
[Result "0-1"]
[WhiteElo "2292"]
[BlackElo "2486"]
[TimeControl "180+1"]
[EndTime "10:39:27 PDT"]
[Termination "Niktlt won on time"]

1. d4 {[%clk 0:03:00.9]} 1... Nf6 {[%clk 0:02:59.9]} 2. Bf4 {[%clk 0:02:59.5]}
2... g6 {[%clk 0:03:00]} 3. Nc3 {[%clk 0:02:51]} 3... d5 {[%clk 0:02:59.9]} 4.
Qd2 {[%clk 0:02:49.1]} 4... c6 {[%clk 0:03:00.2]} 5. e3 {[%clk 0:02:48.4]} 5...
Qb6 {[%clk 0:03:00.2]} 6. O-O-O {[%clk 0:02:47.7]} 6... Bg7 {[%clk 0:03:00.2]}
7. f3 {[%clk 0:02:46.1]} 7... h5 {[%clk 0:02:59.4]} 8. Kb1 {[%clk 0:02:43.4]}
8... a5 {[%clk 0:02:59.7]} 9. Nh3 {[%clk 0:02:37.7]} 9... Bxh3 {[%clk 0:02:57]}
10. gxh3 {[%clk 0:02:37.2]} 10... Nbd7 {[%clk 0:02:57.5]} 11. Bd3 {[%clk
0:02:34.5]} 11... a4 {[%clk 0:02:55.5]} 12. a3 {[%clk 0:02:26.9]} 12... Nf8
{[%clk 0:02:49.4]} 13. e4 {[%clk 0:02:26.9]} 13... Qxd4 {[%clk 0:02:11.5]} 14.
Rhe1 {[%clk 0:02:22.8]} 14... Ne6 {[%clk 0:02:01]} 15. Be3 {[%clk 0:02:18.5]}
15... Qe5 {[%clk 0:02:00.7]} 16. f4 {[%clk 0:02:10.4]} 16... Qc7 {[%clk
0:01:59.2]} 17. f5 {[%clk 0:02:07.6]} 17... Nxe4 {[%clk 0:01:01.9]} 18. Bxe4
{[%clk 0:01:54.4]} 18... dxe4 {[%clk 0:00:35.4]} 19. fxe6 {[%clk 0:01:54.3]}
19... f5 {[%clk 0:00:34.9]} 20. Rg1 {[%clk 0:01:38.7]} 20... Bf6 {[%clk
0:00:21.9]} 21. Rxg6 {[%clk 0:01:35.9]} 21... b5 {[%clk 0:00:21.8]} 22. Bd4
{[%clk 0:01:26.5]} 22... O-O-O {[%clk 0:00:17.9]} 23. Qf2 {[%clk 0:01:25.4]}
23... Rxd4 {[%clk 0:00:10.3]} 24. Rxd4 {[%clk 0:01:25.4]} 24... Qb6 {[%clk
0:00:10.5]} 25. Rxf6 {[%clk 0:01:02.2]} 25... exf6 {[%clk 0:00:11.4]} 26. Qd2
{[%clk 0:00:46]} 26... Re8 {[%clk 0:00:10.3]} 27. e7 {[%clk 0:00:42.7]} 27...
Rxe7 {[%clk 0:00:10.6]} 28. Ne2 {[%clk 0:00:38.2]} 28... Qc7 {[%clk 0:00:08.5]}
29. Qf4 {[%clk 0:00:36.9]} 29... Qxf4 {[%clk 0:00:05.4]} 30. Nxf4 {[%clk
0:00:37]} 30... Rg7 {[%clk 0:00:06]} 31. Nxh5 {[%clk 0:00:27.9]} 31... Rg2
{[%clk 0:00:05.7]} 32. Rd6 {[%clk 0:00:20.1]} 32... e3 {[%clk 0:00:05.6]} 33.
Rxf6 {[%clk 0:00:19.1]} 33... e2 {[%clk 0:00:05.7]} 34. Re6 {[%clk 0:00:19.4]}
34... Rg1+ {[%clk 0:00:05.7]} 35. Ka2 {[%clk 0:00:18.5]} 35... e1=Q {[%clk
0:00:06.6]} 36. Rxe1 {[%clk 0:00:18.2]} 36... Rxe1 {[%clk 0:00:07.5]} 37. h4
{[%clk 0:00:12.9]} 37... Rh1 {[%clk 0:00:07.5]} 38. Ng3 {[%clk 0:00:12.8]} 38...
Rxh2 {[%clk 0:00:07.2]} 39. Nxf5 {[%clk 0:00:12.9]} 39... Rxc2 {[%clk 0:00:08]}
40. Nd4 {[%clk 0:00:11.4]} 40... Rc4 {[%clk 0:00:07.6]} 41. Nf5 {[%clk
0:00:10.9]} 41... Rf4 {[%clk 0:00:06]} 42. Ne7+ {[%clk 0:00:08.9]} 42... Kb7
{[%clk 0:00:06.2]} 43. h5 {[%clk 0:00:08.3]} 43... Rh4 {[%clk 0:00:06.2]} 44.
Nf5 {[%clk 0:00:04.9]} 44... Rxh5 {[%clk 0:00:06.4]} 45. Nd4 {[%clk 0:00:05.1]}
45... Kb6 {[%clk 0:00:05.9]} 46. Kb1 {[%clk 0:00:05.1]} 46... c5 {[%clk
0:00:06.4]} 47. Ne6 {[%clk 0:00:04.5]} 47... b4 {[%clk 0:00:06.1]} 48. axb4
{[%clk 0:00:03.9]} 48... cxb4 {[%clk 0:00:07]} 49. Kc2 {[%clk 0:00:04.4]} 49...
Rh2+ {[%clk 0:00:07.1]} 50. Kc1 {[%clk 0:00:04]} 50... Kb5 {[%clk 0:00:07]} 51.
Nd4+ {[%clk 0:00:04.3]} 51... Kc4 {[%clk 0:00:07.3]} 52. Nc6 {[%clk 0:00:04.7]}
52... a3 {[%clk 0:00:05.7]} 53. bxa3 {[%clk 0:00:04]} 53... bxa3 {[%clk
0:00:06.6]} 54. Ne5+ {[%clk 0:00:04]} 54... Kb3 {[%clk 0:00:06.6]} 55. Nd3
{[%clk 0:00:03.4]} 55... a2 {[%clk 0:00:05.3]} 56. Nc5+ {[%clk 0:00:02.8]} 56...
Kc4 {[%clk 0:00:05.7]} 0-1

[Event "*** Titled Tuesday Blitz"]
[Site "Chess.com"]
[Date "2021.03.16"]
[Round "4"]
[White "Vandros57"]
[Black "Fischerev7"]
[Result "0-1"]
[WhiteElo "2195"]
[BlackElo "2393"]
[TimeControl "180+1"]
[EndTime "10:39:36 PDT"]
[Termination "Fischerev7 won on time"]

1. d4 {[%clk 0:03:00.9]} 1... Nf6 {[%clk 0:02:57.8]} 2. Nf3 {[%clk 0:02:59.1]}
2... e6 {[%clk 0:02:55.7]} 3. c4 {[%clk 0:02:56.7]} 3... Bb4+ {[%clk 0:02:55.3]}
4. Bd2 {[%clk 0:02:54.9]} 4... a5 {[%clk 0:02:55.7]} 5. a3 {[%clk 0:02:51.7]}
5... Be7 {[%clk 0:02:51.9]} 6. g3 {[%clk 0:02:42.5]} 6... O-O {[%clk 0:02:50.4]}
7. Bg2 {[%clk 0:02:41]} 7... b6 {[%clk 0:02:50.1]} 8. Ne5 {[%clk 0:02:38]} 8...
d5 {[%clk 0:02:49.4]} 9. cxd5 {[%clk 0:02:36.4]} 9... exd5 {[%clk 0:02:47.9]}
10. Nc3 {[%clk 0:02:35]} 10... c5 {[%clk 0:02:45.5]} 11. O-O {[%clk 0:02:29.9]}
11... Be6 {[%clk 0:02:42.3]} 12. Bg5 {[%clk 0:02:21.6]} 12... c4 {[%clk
0:02:35.5]} 13. a4 {[%clk 0:02:16.6]} 13... Ra7 {[%clk 0:02:15.7]} 14. Bxf6
{[%clk 0:02:14.4]} 14... Bxf6 {[%clk 0:02:14.2]} 15. f4 {[%clk 0:02:13.2]} 15...
Rc7 {[%clk 0:02:05]} 16. e3 {[%clk 0:02:11.8]} 16... Nc6 {[%clk 0:02:03.1]} 17.
Nb5 {[%clk 0:02:07.4]} 17... Rc8 {[%clk 0:02:02.4]} 18. Qd2 {[%clk 0:01:56.2]}
18... Nb4 {[%clk 0:02:00.2]} 19. Rad1 {[%clk 0:01:48.4]} 19... Be7 {[%clk
0:01:59.6]} 20. f5 {[%clk 0:01:41]} 20... Bd7 {[%clk 0:01:57.1]} 21. Nxd7 {[%clk
0:01:30.9]} 21... Qxd7 {[%clk 0:01:57.2]} 22. Qe2 {[%clk 0:01:23.3]} 22... Rfe8
{[%clk 0:01:50.1]} 23. Qf3 {[%clk 0:01:18.1]} 23... Bg5 {[%clk 0:01:46.2]} 24.
Rfe1 {[%clk 0:01:15.4]} 24... f6 {[%clk 0:01:27.6]} 25. h4 {[%clk 0:01:13.9]}
25... Bh6 {[%clk 0:01:27.4]} 26. g4 {[%clk 0:01:12.1]} 26... Re7 {[%clk
0:01:24.3]} 27. Qg3 {[%clk 0:01:09.3]} 27... g6 {[%clk 0:01:10.7]} 28. g5 {[%clk
0:01:07.5]} 28... Bg7 {[%clk 0:01:10.3]} 29. fxg6 {[%clk 0:01:06.7]} 29... fxg5
{[%clk 0:01:07.6]} 30. gxh7+ {[%clk 0:01:04.5]} 30... Kh8 {[%clk 0:01:07.6]} 31.
hxg5 {[%clk 0:01:03.7]} 31... Rce8 {[%clk 0:01:04.6]} 32. Bh3 {[%clk 0:00:56.7]}
32... Qc6 {[%clk 0:00:58.3]} 33. Nd6 {[%clk 0:00:51.4]} 33... Qc7 {[%clk
0:00:36]} 34. Kg2 {[%clk 0:00:37.1]} 34... Rf8 {[%clk 0:00:30.7]} 35. Rf1 {[%clk
0:00:33.9]} 35... Rxf1 {[%clk 0:00:24.4]} 36. Rxf1 {[%clk 0:00:33.2]} 36... Nc2
{[%clk 0:00:23]} 37. Nf5 {[%clk 0:00:23.6]} 37... Qxg3+ {[%clk 0:00:21.4]} 38.
Kxg3 {[%clk 0:00:23.5]} 38... Rf7 {[%clk 0:00:14.5]} 39. g6 {[%clk 0:00:16.7]}
39... Rf6 {[%clk 0:00:13.1]} 40. Nxg7 {[%clk 0:00:13]} 40... Rxg6+ {[%clk
0:00:12.4]} 41. Kh4 {[%clk 0:00:10.4]} 41... Kxg7 {[%clk 0:00:09.6]} 42. Bf5
{[%clk 0:00:08.4]} 42... Rh6+ {[%clk 0:00:09.6]} 43. Kg5 {[%clk 0:00:07.6]}
43... Rh2 {[%clk 0:00:08.9]} 44. Rg1 {[%clk 0:00:06.1]} 44... Nxe3 {[%clk
0:00:06.6]} 45. Kf4+ {[%clk 0:00:05.9]} 45... Rg2 {[%clk 0:00:05.5]} 46. Rxg2+
{[%clk 0:00:04.8]} 46... Nxg2+ {[%clk 0:00:06.4]} 47. Ke5 {[%clk 0:00:03.8]}
47... Ne3 {[%clk 0:00:06.1]} 48. Be6 {[%clk 0:00:03.4]} 48... Nd1 {[%clk
0:00:05.8]} 49. Kxd5 {[%clk 0:00:01.4]} 49... Nxb2 {[%clk 0:00:06.7]} 50. Kc6
{[%clk 0:00:01.8]} 50... c3 {[%clk 0:00:07.3]} 51. Bf5 {[%clk 0:00:01.7]} 51...
Nxa4 {[%clk 0:00:07.6]} 52. Kb5 {[%clk 0:00:01.4]} 52... c2 {[%clk 0:00:07.1]}
53. d5 {[%clk 0:00:01.4]} 53... c1=Q {[%clk 0:00:06]} 54. Kxa4 {[%clk
0:00:01.1]} 54... Qc5 {[%clk 0:00:05.9]} 0-1